Cogmind - Beta 13 --- EXPLORER MODE // 2024.05.31 @ 21:32:13 Player: arsenier Result: Destroyed by Piercing Trap Performance ------------- Evolutions (0) 0 Regions Visited (3) 600 Robots Destroyed (30) 150 Value Destroyed (872) 872 Prototype IDs (0) 0 Alien Tech Used (0) 0 Bonus (0) 0 TOTAL SCORE: 1622 Bonus ------- None Cogmind --------- Core Integrity 0/250 Matter 290/300 Energy 146/150 System Corruption 0% Temperature Cool (2) Movement Walking (120) Location -10/Subcaves Parts ------- > --- POWER (1) -------- Light Angular Momentum Engine > --- PROPULSION (2) --- Carbon-fiber Leg Carbon-fiber Leg > --- UTILITY (3) ------ Medium Storage Unit Seismic Detector Targeting Computer > --- WEAPON (2) ------- Subdweller Machine Gun Makeshift Spear > --- INVENTORY (10) --- Ion Engine Carbon-fiber Leg Improved Heat Sink Huge Storage Unit High-capacity Battery (250) Seismic Detector Makeshift Hacking Suite Tractor Beam Rocket Launcher Peak State ------------ > --- POWER ------------ Light Angular Momentum Engine > --- PROPULSION ------- Carbon-fiber Leg Carbon-fiber Leg > --- UTILITY ---------- Medium Storage Unit Seismic Detector Targeting Computer > --- WEAPON ----------- Subdweller Machine Gun Enhanced Flamer > --- INVENTORY -------- Ion Engine Carbon-fiber Leg Improved Heat Sink Huge Storage Unit High-capacity Battery Seismic Detector Makeshift Hacking Suite Tractor Beam Rocket Launcher Makeshift Spear [Rating: 21] Favorites ----------- Power Light Angular Momentum Engine Engine Light Angular Momentum Engine Propulsion Aluminum Leg Leg Aluminum Leg Utility Medium Storage Unit Device Seismic Detector Storage Medium Storage Unit Processor Targeting Computer Protection Light Armor Plating Weapon Subdweller Machine Gun Energy Gun EM Pulse Gun Ballistic Gun Subdweller Machine Gun Launcher Rocket Launcher Special Weapon Enhanced Flamer Piercing Weapon Makeshift Spear Build | -11 -10 -10 -10 ------- Run | Yrd Mat Min Sub Slots Evolved 1 | . 1 . . Power . | . . . . Propulsion . | . . . . Utility 1 | . 1 . . Weapon . | . . . . Parts Attached 28 | 7 1 4 16 Power 4 | 1 . . 3 Engine 4 | 1 . . 3 Core . | . . . . Reactor . | . . . . Propulsion 6 | 2 . 1 3 Treads . | . . . . Leg 6 | 2 . 1 3 Wheel . | . . . . Hover . | . . . . Flight . | . . . . Utility 6 | 2 1 1 2 Device 3 | . . 1 2 Storage 1 | 1 . . . Processor 1 | 1 . . . Hackware . | . . . . Protection 1 | . 1 . . Artifact . | . . . . Weapon 12 | 2 . 2 8 Energy Gun 3 | 1 . 1 1 Energy Cannon . | . . . . Ballistic Gun 4 | 1 . . 3 Ballistic Cannon . | . . . . Launcher 2 | . . 1 1 Special Weapon 2 | . . . 2 Impact Weapon . | . . . . Slashing Weapon . | . . . . Piercing Weapon 1 | . . . 1 Special Melee Weapon . | . . . . Unidentified Prototypes . | . . . . Parts Lost 6 | . . 2 4 Power . | . . . . Propulsion 2 | . . . 2 Utility 1 | . . 1 . Weapon 3 | . . 1 2 Highest Loss Streak 2 | . . 1 2 To Critical Strikes . | . . . . Average Slot Usage (%) 93 | . 100 97 90 Engine 11 | . 12 12 11 Leg 19 | . 25 25 16 Device 8 | . . 3 12 Storage 12 | . 12 12 12 Processor 12 | . 12 12 12 Protection 3 | . 12 6 . Energy Gun 3 | . 12 5 . Ballistic Gun 15 | . 12 12 18 Launcher 2 | . . 5 1 Special Weapon 2 | . . . 3 Naked Turns . | . . . . Heaviest Build 28 | 19 22 24 28 Greatest Support 30 | 20 20 20 30 Greatest Overweight (x) 9 | 5 1 1 9 Average Overweight (x) . | . 1 . . Largest Inventory Capacity 10 | 10 10 10 10 Average Capacity 9 | 9 10 10 10 Most Carried 10 | 3 6 10 10 Average Carried 8 | 1 3 7 9 Final Capacity 10 | 10 10 10 10 Final Carried 10 | 3 6 10 9 Class Distribution -------------------- 80% | Hacker-Mutant 19% | Scavenger-Mutant Dominant Class ---------------- Hacker-Mutant | -10/Materials Hacker-Mutant | -10/Mines Hacker-Mutant | -10/Subcaves Resources | -11 -10 -10 -10 ----------- Run | Yrd Mat Min Sub Matter Collected 847 | 228 100 210 309 Remotely . | . . . . Salvage Created 1078 | . 275 400 403 Parts 49 | . 12 18 19 Haulers Intercepted . | . . . . Recyclers Shooed . | . . . . Parts Field Recycled . | . . . . Retrieved Matter . | . . . . Parts Self-Destructed . | . . . . Prevented . | . . . . Kills | -11 -10 -10 -10 ------- Run | Yrd Mat Min Sub Combat Hostiles Destroyed 34 | . 7 14 13 Guns 21 | . 6 11 4 Cannons 3 | . . . 3 AOE 10 | . 1 3 6 Classes Destroyed 5 | . 3 1 1 Recycler 3 | . 1 2 . Swarmer 7 | . 3 4 . Grunt 7 | . 4 3 . Subdweller 13 | . . . 13 Assembled 7 | . . 7 . Best Kill Streak 5 | . 4 5 5 Combat Bots Only 5 | . 3 5 5 Max Kills in Single Turn 3 | . 2 2 3 Gunslinging . | . . . . Exploded 3 | . 1 2 3 Melee . | . . . . Uniques/NPCs Destroyed . | . . . . Combat | -11 -10 -10 -10 -------- Run | Yrd Mat Min Sub Hostile Shots Fired 126 | . 31 46 49 Missed 42 | . 9 17 16 Damage Taken 1011 | . 240 256 515 Core 264 | . 80 42 142 Absorbed by Shields . | . . . . Ignored by Resistances 607 | . 147 168 292 Core Remaining (%) 100 | 100 . . . Volleys Fired 105 | . 16 40 49 Largest 2 | . 2 2 2 Hottest 110 | . 60 60 110 Shots Fired 168 | . 32 63 73 Gun 150 | . 32 58 60 Cannon . | . . . . Launcher 10 | . . 5 5 Special 8 | . . . 8 Kinetic 112 | . 16 40 56 Thermal 15 | . . 3 12 Explosive 10 | . . 5 5 Electromagnetic 31 | . 16 15 . Robot Hit Streak 29 | . 17 29 18 Robot Miss Streak 2 | . 1 2 1 Penetration Max . | . . . . Secondary Targets 1 | . . 1 . Max Gunslinging Chain 1 | . . 1 . Shots Hit Robots 137 | . 28 56 53 Core Hits 66 | . 12 29 25 Critical Kills 1 | . . 1 . Critical Parts Destroyed . | . . . . Critical Strikes 5 | . 1 1 3 Burn 2 | . . . 2 Destroy 2 | . . 1 1 Corrupt 1 | . 1 . . Melee Attacks 4 | . . . 4 Impact . | . . . . Slashing . | . . . . Piercing 4 | . . . 4 Sneak Attacks . | . . . . Combat Hostiles . | . . . . Follow-up Attacks . | . . . . Damage Inflicted 3364 | . 452 1072 1840 Guns 1722 | . 359 675 688 Cannons . | . . . . Explosions 1578 | . 93 397 1088 Melee . | . . . . Ramming . | . . . . Kinetic 1282 | . 163 465 654 Thermal 362 | . 93 171 98 Explosive 1337 | . . 249 1088 Electromagnetic 383 | . 196 187 . Impact . | . . . . Slashing . | . . . . Piercing . | . . . . Highest Corruption . | . . . . Average Corruption . | . . . . Corruption Purged . | . . . . Corruption Blocked . | . . . . Overload Shots . | . . . . Overflow Damage . | . . . . Projectiles . | . . . . Explosions . | . . . . Melee . | . . . . Knockbacks . | . . . . Impact . | . . . . Kinetic . | . . . . Secondary . | . . . . Self-Inflicted Damage 15 | . . 15 . Shots 2 | . . 2 . Rammed . | . . . . Targets Rammed . | . . . . Kicked . | . . . . Crushed . | . . . . Highest Temperature 138 | . 126 138 6 Average Temperature 45 | . 54 39 4 Received Heat Transfer 364 | . 135 136 93 Siege Activations . | . . . . Robots Corrupted . | . . . . Combat Hostiles . | . . . . Parts Fried 1 | . . 1 . Impact Corruptions . | . . . . Robots Melted . | . . . . Combat Hostiles . | . . . . Parts Melted 2 | . . . 2 Heat Transferred 1225 | . 150 200 875 Parts Sabotaged . | . . . . Parts Stolen . | . . . . Parts Stripped . | . . . . Power Chain Reactions 3 | . 1 2 . Alert | -11 -10 -10 -10 ------- Run | Yrd Mat Min Sub Peak Influence 229 | . 229 173 . Initial 62 | . . 62 . Average 66 | . 112 57 . Maximum Alert Level 1 | . 1 . . Low Security (%) 93 | 100 70 100 . Level 1 6 | . 29 . . Level 2 . | . . . . Level 3 . | . . . . Level 4 . | . . . . Level 5 . | . . . . High Security . | . . . . Max Security . | . . . . Squads Dispatched . | . . . . Investigation . | . . . . Extermination . | . . . . Reinforcement . | . . . . Assault . | . . . . Garrison . | . . . . Intercept . | . . . . Searches Triggered . | . . . . Construction Impeded . | . . . . Haulers Reinforced . | . . . . Active Scanning Responses . | . . . . Cargo Convoy Interrupts . | . . . . Stealth | -11 -10 -10 -10 --------- Run | Yrd Mat Min Sub Distress Signals 1 | . 1 . . Communications Jammed . | . . . . Distress Signals . | . . . . Times Spotted 76 | . 14 37 25 Peak Tracking Total 14 | . 6 14 9 Tactical Retreats 6 | . 1 4 1 Traps | -11 -10 -10 -10 ------- Run | Yrd Mat Min Sub Traps Triggered 1 | . . . 1 Indirectly . | . . . . Trap Hack Attempts . | . . . . Triggered . | . . . . Disarmed . | . . . . Reprogrammed . | . . . . Reused . | . . . . Traps Extracted . | . . . . Installed . | . . . . Triggered . | . . . . Machines | -11 -10 -10 -10 ---------- Run | Yrd Mat Min Sub Machines Disabled . | . . . . Max in Single Turn . | . . . . Machines Repaired . | . . . . Machines Dismantled . | . . . . Machines Sabotaged . | . . . . Overloaded Fab Kills . | . . . . Hacking | -11 -10 -10 -10 --------- Run | Yrd Mat Min Sub Machines Accessed 3 | . 2 . 1 Terminals 2 | . 2 . . Fabricators . | . . . . Repair Stations . | . . . . Recycling Units . | . . . . Scanalyzers . | . . . . Garrison Access . | . . . . Total Hacks 6 | . 3 . 3 Successful 5 | . 2 . 3 Failed 1 | . 1 . . Catastrophic . | . . . . Database Lockouts . | . . . . Manual 1 | . 1 . . Terminals 3 | . 3 . . Fabricators . | . . . . Repair Stations . | . . . . Recycling Units . | . . . . Scanalyzers . | . . . . Garrison Access . | . . . . Terminal Hacks 5 | . 2 . 3 Record 3 | . . . 3 Branch Access Points 1 | . 1 . . Zone Layout 1 | . 1 . . Fabricator Hacks . | . . . . Repair Station Hacks . | . . . . Recycling Unit Hacks . | . . . . Scanalyzer . | . . . . Garrison Access Hacks . | . . . . Unauthorized Hacks . | . . . . Terminals . | . . . . Fabricators . | . . . . Repair Stations . | . . . . Recycling Units . | . . . . Scanalyzers . | . . . . Garrison Access . | . . . . Data Cores Recovered . | . . . . Used . | . . . . Hacking Detections 1 | . 1 . . Full Trace Events . | . . . . Feedback Events . | . . . . Feedback Blocked . | . . . . Robot Schematics Acquired . | . . . . Robots Built . | . . . . Authchips . | . . . . Time . | . . . . Total Robot Build Rating . | . . . . Part Schematics Acquired . | . . . . Parts Built . | . . . . Authchips . | . . . . Time . | . . . . Total Part Build Rating . | . . . . Parts Repaired . | . . . . Time . | . . . . Parts Recycled . | . . . . Recycled Matter . | . . . . Retrieved Matter . | . . . . Retrieved Components . | . . . . Parts Scanalyzed . | . . . . Part Schematics Acquired . | . . . . Parts Damaged . | . . . . Bothacking | -11 -10 -10 -10 ------------ Run | Yrd Mat Min Sub Used RIF Installer . | . . . . Robots Hacked . | . . . . Non-combat . | . . . . Combat . | . . . . Robot Hacks Applied . | . . . . Relay Couplers Released . | . . . . Fabnet Peak Effective % . | . . . . Robots Rewired . | . . . . Allies Hacked . | . . . . Hacks Repelled . | . . . . Allies | -11 -10 -10 -10 -------- Run | Yrd Mat Min Sub Total Allies . | . . . . Largest Group . | . . . . Highest-Rated Group . | . . . . Highest-Rated Ally . | . . . . Total Orders . | . . . . Ally Attacks . | . . . . Total Damage . | . . . . Kills . | . . . . Allies Corrupted . | . . . . Allies Melted . | . . . . Intel | -11 -10 -10 -10 ------- Run | Yrd Mat Min Sub Robot Analysis Total . | . . . . Derelict Logs Recovered 3 | . . . 3 Drone Launches . | . . . . Drone Recoveries . | . . . . Exploration | -11 -10 -10 -10 ------------- Run | Yrd Mat Min Sub Turns Passed 4409 | 96 382 1296 2635 Spaces Moved 2152 | 59 165 618 1310 Core 14 | 11 . . 3 Treads . | . . . . Legs 2138 | 48 165 618 1307 Wheels . | . . . . Hover . | . . . . Flight . | . . . . Fastest Speed 50 | 50 190 120 120 Average Speed 186 | 140 190 188 187 Slowest Speed 500 | 300 190 190 500 Overloaded Moves . | . . . . Propulsion Burnouts . | . . . . Robots Hopped . | . . . . Cave-ins Triggered . | . . . . Exploration Rate (%) 50 | 5 33 98 65 Regions Visited 3 Branch Regions 2 Pre-discovered Areas 1 | . . . 1 Known Exits Taken 3 | 1 1 1 . Unknown Exits Taken . | . . . . Scrap Searched 10 | . . . 10 Spaces Dug . | . . . . Terrain Destroyed 58 | . 2 44 12 Melee . | . . . . Projectile . | . . . . AOE 58 | . 2 44 12 Terrain Rammed . | . . . . Walls Destroyed . | . . . . Machines Disabled . | . . . . Actions | -11 -10 -10 -10 --------- Run | Yrd Mat Min Sub Total 2367 | 68 202 685 1412 Wait 51 | . 17 21 13 Move 2149 | 58 164 617 1310 Hop . | . . . . Pick Up 15 | 3 4 3 5 Fast Attach 13 | 7 . 2 4 Attach 6 | . 1 . 5 Detach 4 | . . . 4 Swap 9 | . . 2 7 Drop 10 | . . . 10 Fire 105 | . 16 40 49 Melee 4 | . . . 4 Ram . | . . . . Kick . | . . . . Crush . | . . . . Escape Stasis . | . . . . Rewire 1 | . . . 1 Trap . | . . . . Miscellaneous . | . . . . Route ------- -11/Scrapyard -10/Materials -10/Mines (discovered 3 exits: *Mat x2 / *Sub) -10/Subcaves (discovered 2 exits: *Mat x2) History --------- Turn | Location | Event 33 | -11/Scrapyard | Identified exit to Materials 33 | -11/Scrapyard | Discovered exit to Materials (range 16) 97 | -11/Scrapyard | Entered Materials 97 | -10/Materials | Evolved 1 slot: Utility x1 157 | -10/Materials | Identified exit to Mines 308 | -10/Materials | Build established: Hacker-Mutant 479 | -10/Materials | Entered Mines 679 | -10/Mines | Identified exit to Materials 679 | -10/Mines | Discovered exit to Materials (range 8) 989 | -10/Mines | Discovered exit to Materials (range 5) 1140 | -10/Mines | Received a Rocket Launcher from a helpful Derelict 1141 | -10/Mines | Assembled infested the area 1282 | -10/Mines | Identified exit to Subcaves 1282 | -10/Mines | Discovered exit to Subcaves (range 15) 1775 | -10/Mines | Entered Subcaves 1785 | -10/Subcaves | Learned location of Zion (-7) 1849 | -10/Subcaves | Core integrity fell below 50% 1850 | -10/Subcaves | Ambushed by swarm of Subdwellers 1852 | -10/Subcaves | Ambushed by Subdwellers from Twisted Machinery 1852 | -10/Subcaves | Ambushed by Subdwellers from Twisted Machinery 1852 | -10/Subcaves | Ambushed by Subdwellers from Twisted Machinery 1852 | -10/Subcaves | Ambushed by Subdwellers from Twisted Machinery 1855 | -10/Subcaves | Ambushed by Subdwellers from Twisted Machinery 1967 | -10/Subcaves | Learned Materials stockpile data 2470 | -10/Subcaves | Visited Clippyterm 2478 | -10/Subcaves | Learned Factory trap positions 2581 | -10/Subcaves | A swath of the cavern ceiling suddenly collapsed 2991 | -10/Subcaves | Core integrity fell below 20% 3020 | -10/Subcaves | Ambushed by Subdweller buried in earth 3033 | -10/Subcaves | Identified exit to Materials 3033 | -10/Subcaves | Discovered exit to Materials (range 8) 3563 | -10/Subcaves | Learned Materials stockpile data 3654 | -10/Subcaves | Discovered exit to Materials (range 6) 3841 | -10/Subcaves | Build established: Scavenger-Mutant 4377 | -10/Subcaves | A swath of the cavern ceiling suddenly collapsed 4410 | -10/Subcaves | Destroyed by Piercing Trap Last Messages --------------- 03805_ L7-QXH(O) collects matter. 03956_ Subatomizers dissect the Lgt. Angular Momentum Engine, destroying it. 04094_ Extracted 4 energy. 04296_ NG-CID(R) suffers critical hit (Burn). 04298_ Enh. Flamer destroyed. 04311_ NG-CID(R) destroyed. 04319_ Acquired 23 matter. 04325_ Searching scrap... 04325_ Found Riot Gun. 04325_ Found 25 Matter. 04326_ Acquired 4 matter. 04326_ Searching scrap... 04326_ Found Sub. Laser. 04326_ Found Piercing Trap. 04326_ Found 14 Matter. A swath of the cavern ceiling suddenly collapses. 04410_ Triggered Piercing Trap. 04410_ Spikes shoot up from the floor. 04410_ Critical hit (Impale). Map ----- +----------------------------------------------------+ | ?????????????????????????????????????????????????? | | ?????????????????????????????????????????????????? | | ?????????????????????????????????????????????????? | | ?????????????????????????????????????????????????? | | ?????????????????????????????????????????????????? | | ?????????????????????????????????????????????????? | | ?????????????????????????????????????????????????? | | ?????????????????????????????????????????????????? | | ?????????????????????????????????????????????????? | | ?????????????????????????????????????????????????? | | ?????????????????????????????????????????????????? | | ?????????????????????????????????????????????????? | | ?????????????????????????????????????????????????? | | ?????????????????????????????????????????????????? | | ?????????????????????????????????????????????????? | | ?????????????????????????????????????????????????? | | ?????????????????????????????????????????????????? | | ?????????????????????????????????????????????????? | | ?????????????????????????????????????????????????? | | ?????????????????????????????????????????????????? | | ???????????????????????###???????????????????????? | | ???????????????##???#### #???????????????????????? | | ?????????????########"" "#???????????????????????? | | ????????????###"#"##"""# #??????# #???????????? | | ????????????#"##"""#"#"#;### #???????????? | | ???????????##" ##""#""##@ #??????????? | | ??????????##"############# #??????????? | | ?????????##"# #####???????# ##???????????? | | ?????????#"" #????????## ##????????????? | | ?????????## ##??????????? #?????????????? | | ?????????# ##??????##???# # #?????????????? | | ?????????## #???????# ##? ## ##????????????? | | #########?## #???##### ## ## #??? ??????? | | ## #### ##???# ##?# ???????? | | ## ##????? ## ???????? | | ! ####??? ????????? | | # ## ##??? #????????? | | # ###### #???? #?????????? | | #?### #????#" #?????????? | | # ##?# ## ##???#"" #?????????? | | ###??# #### #???# " ### ##????????? | | ?????## #??# ##??# " "# ##???????? | | ??????# #??# ####" "" #? ##??????? | | ??????## ##### &"" ## #??????? | | #####??# ### %& # #??????? | | #### ##?## % #??????? | | ##???## ### #"" [ ##??????? | | ##?????# ##?### & & ##???????? | | # ## ##??????###???#"" !!%&% #????????? | | ##########?????????????##"" & !&!% #????????? | +----------------------------------------------------+ Best States ------------- Heat Dissipation 25 Energy Generation 18 Energy Capacity 250 Matter Stores 300 Matter Capacity 300 Sight Range 21 Terrain Scan Density 10 Armor Coverage 150 Resistance: KI 35 Resistance: TH 35 Resistance: EX 35 Resistance: EM 35 Resistance: I 35 Resistance: S 35 Resistance: P 35 Evasion (%) 55 Targeting Accuracy 5 Offensive Hacking 20 Item Schematics ----------------- None Robot Schematics ------------------ None Fabricated ------------ Nothing Alien Tech Used ----------------- None Achievements -------------- None Challenges ------------ None Game ------ Seed EfficiencyCoilStabilizer Manual? 0 Play Time 00:30:39 Cumulative 17.8 hours Start 2024.05.31 @ 00:27:34 End 2024.05.31 @ 21:32:13 Sessions 3 Manual Loads 0 Difficulty Explorer Special Mode None Game No. 7 Rogue 0 Adventurer 0 Explorer 7 Win Type - Total 1 Types 1/0/0/0/0/0/0/0/0 Lore% 24 Gallery% 24 Achievement% 25 Wizard Run 0 Options --------- Layout 0 ASCII 0 Keyboard 1 Movement Arrows Keybinds 0 Fullscreen 1 Font 18/SmallcapsGlow Map View 76x50 Zoom Use 0% Tactical HUD 1 Map Filters NONE Filters NONE Steam 1 RUN: 5d6777e0-30ab-48b7-9b7d-85a413d25485